bitfinex/quotes_ETHUSD_20250511
["timestamp","ask_amount","ask_price","bid_price","bid_amount"]
[1746941964274,0.09520339,2550.6,2550.2,1.68959402]
[1746941964721,0.7792,2550.7,2550.2,1.68959402]
[1746941965980,0.7792,2550.7,2550.3,0.03920785]
[1746941967575,0.7792,2550.7,2550.2,1.68959402]
[1746941967775,0.7792,2550.7,2550.1,8.0]
[1746941967977,0.7792,2550.7,2550.1,10.7]
[1746941968791,0.09542381,2550.6,2550.1,10.7]
[1746941969013,0.7882,2551.1,2550.1,10.7]
[1746941969249,0.34396266,2551.0,2550.1,8.0]
[1746941969421,0.7882,2550.9,2550.1,8.0]
[1746941969719,0.7882,2550.7,2550.1,8.0]
[1746941970320,0.09542381,2550.6,2550.1,8.0]
[1746941970692,0.7882,2550.7,2550.1,8.0]
[1746941971089,0.7882,2550.5,2550.1,8.0]
[1746941972591,0.7882,2550.5,2550.2,0.03920661]
[1746941972808,0.7882,2551.3,2550.2,1.72880063]
[1746941973049,0.7882,2551.1,2550.2,0.03920661]
[1746941973255,0.09618326,2551.0,2550.6,1.68959402]
[1746941973454,2.7,2551.9,2550.8,1.68959402]
[1746941973611,0.88564739,2551.8,2550.8,1.68959402]
[1746941974012,0.88564739,2551.8,2550.9,0.03919793]
[1746941974307,0.88564739,2551.8,2551.2,1.68959402]
[1746941974620,0.88564739,2551.8,2551.3,8.0]
[1746941975132,0.09744739,2551.8,2551.4,1.72878566]
[1746941975509,0.09744739,2551.8,2551.3,8.0]
[1746941975738,0.7882,2552.0,2551.3,11.51074869]
[1746941976343,0.7882,2552.0,2551.4,0.03918702]
[1746941976706,0.7882,2551.8,2550.9,8.0]
[1746941976931,0.7882,2551.6,2550.8,5.397]
[1746941977242,0.13606994,2551.5,2550.8,5.397]
[1746941977542,0.13606994,2551.5,2550.6,8.0]
[1746941977746,0.13606994,2551.5,2550.8,8.0]
[1746941978069,0.13606994,2551.5,2550.9,0.03919621]
[1746941978445,0.03919175,2551.5,2550.9,0.03919621]
[1746941978650,0.7882,2551.6,2550.8,8.0]
[1746941978940,0.09857652,2551.5,2550.8,8.0]
[1746941979142,0.09857652,2551.5,2550.9,0.002623]
[1746941979143,0.13776827,2551.5,2550.9,0.002623]
[1746941980414,0.13776827,2551.5,2550.9,0.04181934]
[1746941981165,0.09857652,2551.5,2550.9,0.04181934]
[1746941981527,0.7882,2551.6,2550.9,0.39211934]
[1746941982057,0.7882,2551.6,2551.0,0.55]
[1746941982659,0.7882,2551.6,2551.1,0.04181376]
[1746941982963,0.7769,2552.0,2551.1,0.04181376]
[1746941983173,0.03919175,2551.9,2551.1,0.04181376]
[1746941983340,0.14013035,2551.9,2551.1,0.04181376]
[1746941983665,0.1009386,2551.9,2551.7,3.51074869]
[1746941983972,0.29604837,2553.5,2551.8,13.395]
[1746941983973,0.7769,2552.7,2551.8,13.395]
[1746941984127,0.03919175,2552.6,2551.8,13.395]
[1746941984453,0.7769,2552.5,2551.8,13.397623]
[1746941984671,0.0937237,2552.4,2551.9,0.03918094]
[1746941984852,0.7769,2552.5,2551.9,0.03918094]
[1746941985027,0.09435951,2552.4,2552.0,0.002623]
[1746941985228,0.7769,2552.5,2552.0,0.002623]
[1746941985437,0.09435951,2552.4,2552.0,0.002623]
[1746941985741,0.7769,2552.5,2552.0,0.002623]
[1746941986076,0.09494746,2552.4,2552.0,0.002623]
[1746941986367,0.7769,2552.5,2552.0,0.002623]
[1746941986738,0.09494746,2552.4,2552.0,0.002623]
[1746941987139,0.7769,2552.5,2552.0,0.002623]
[1746941987454,2.699,2553.4,2552.0,0.002623]
[1746941987455,0.7727,2552.7,2552.0,0.002623]
[1746941987669,0.7727,2552.7,2552.1,0.3503]
[1746941988024,0.7727,2552.7,2552.2,0.002623]
[1746941989271,0.7727,2552.7,2552.1,0.3503]
[1746941990184,0.7727,2553.2,2552.7,8.0]
[1746941990352,0.7727,2553.2,2552.8,0.03916747]
[1746941990530,0.7727,2553.5,2552.9,3.51074869]
[1746941990735,0.7727,2553.5,2553.0,8.03916309]
[1746941990970,0.09712892,2553.4,2553.0,8.03916309]
[1746941992270,0.09712892,2553.4,2552.8,8.55]
[1746941994154,0.09712892,2553.4,2552.9,0.03916311]
[1746941994472,0.8062,2553.7,2552.8,8.55]
[1746941994637,0.1012093,2553.6,2552.8,8.55]
[1746941994837,0.8062,2553.7,2552.8,8.55]
[1746941995335,0.10136807,2553.6,2552.8,8.55]
[1746941996790,0.14055982,2553.6,2552.8,8.0]
[1746941996969,0.14055982,2553.6,2553.0,8.0]
[1746941997157,0.14055982,2553.6,2553.0,10.692]
[1746941997357,0.14055982,2553.6,2552.8,8.0]
[1746941997558,0.10136807,2553.6,2553.0,10.692]
[1746941997891,0.10136807,2553.6,2553.1,0.03916337]
[1746941998990,0.14055982,2553.6,2553.0,10.692]
[1746941999510,0.10136807,2553.6,2553.0,10.692]
[1746941999999,0.10136807,2553.6,2553.1,0.03916234]
[1746942001874,0.14055982,2553.6,2553.0,10.692]
[1746942002776,0.03919175,2553.6,2553.0,10.692]
[1746942002977,0.8062,2553.7,2553.0,10.692]
[1746942003193,0.8054,2553.4,2553.0,10.692]
[1746942003702,0.10078379,2553.3,2553.0,10.692]
[1746942003896,0.8054,2553.4,2553.0,10.692]
[1746942004108,0.10078379,2553.3,2553.0,10.692]
[1746942004403,0.8054,2553.4,2553.0,10.692]
[1746942004706,0.10078379,2553.3,2552.7,0.3503]
[1746942004903,0.10078379,2553.3,2552.9,8.0]
[1746942005402,0.13997554,2553.3,2552.9,8.0]
[1746942005780,0.03919175,2553.3,2552.9,8.0]
[1746942006099,0.1005467,2553.2,2552.9,8.0]
[1746942006502,0.8054,2553.4,2552.9,8.0]
[1746942006702,0.1007362,2553.3,2552.9,8.0]
[1746942007303,0.8054,2553.4,2552.9,8.0]
[1746942007467,0.1007362,2553.3,2552.9,8.0]
[1746942007668,0.8054,2553.4,2552.9,8.0]
[1746942007899,0.1007362,2553.3,2552.9,10.69]
[1746942008104,0.8054,2553.4,2552.9,10.69]
[1746942008299,0.10068856,2553.3,2552.9,10.69]
[1746942008504,0.8054,2553.4,2552.9,10.69]
[1746942008707,0.10068856,2553.3,2552.9,10.69]
[1746942008873,0.8054,2553.4,2552.9,10.69]
[1746942009077,0.10068856,2553.3,2552.9,10.69]
[1746942009286,0.8054,2553.4,2552.9,10.69]
[1746942009485,0.10068856,2553.3,2552.9,10.69]
[1746942009884,0.10068856,2553.3,2552.9,2.689]
[1746942010100,0.10068856,2553.3,2552.9,10.689]
[1746942010288,0.8054,2553.4,2552.9,10.689]
[1746942010490,0.10072032,2553.3,2552.9,10.689]
[1746942010708,0.8054,2553.4,2552.9,10.689]
[1746942010912,0.10072032,2553.3,2552.9,10.689]
[1746942011514,0.10072032,2553.3,2552.9,8.0]
[1746942011714,0.8054,2553.4,2552.9,8.0]
[1746942011914,0.09271283,2553.3,2552.9,8.0]
[1746942012206,0.8054,2553.4,2552.9,8.0]
[1746942012419,0.8054,2553.4,2552.6,8.0]
[1746942012580,0.8222,2553.2,2552.7,0.02]
[1746942012776,0.8222,2553.0,2552.7,0.02]
[1746942013204,0.09179597,2552.9,2552.7,0.02]
[1746942013713,0.08393005,2552.8,2552.4,5.41917394]
[1746942014014,0.8222,2552.7,2551.8,0.54847313]
[1746942014217,0.8222,2552.5,2551.9,2.689]
[1746942014420,0.8222,2552.3,2551.9,2.689]
[1746942014606,5.38,2553.1,2552.0,0.03918171]
[1746942014607,0.8222,2552.8,2552.0,0.03918171]
[1746942014788,0.8222,2552.8,2552.3,0.3503]
[1746942014988,0.8222,2552.8,2552.5,8.0]
[1746942015322,0.8222,2552.8,2552.5,10.688]
[1746942016015,0.8222,2552.8,2552.6,0.03917161]
[1746942016220,0.8222,2553.4,2552.6,0.03917189]
[1746942016387,0.03919175,2553.3,2552.6,0.03917189]
[1746942016587,0.12354441,2553.3,2552.6,0.03917189]
[1746942017699,0.8222,2553.2,2552.6,0.03917189]
[1746942017919,0.8222,2553.2,2552.5,10.688]
[1746942018692,0.8222,2553.2,2552.6,0.03916971]
[1746942019627,0.8222,2553.2,2552.5,10.688]
[1746942019940,0.8222,2553.2,2552.6,0.03916893]
[1746942020236,0.8222,2553.2,2552.7,0.3503]
[1746942020421,0.8222,2553.2,2552.8,0.03916754]
[1746942020730,0.8222,2553.2,2552.7,0.3503]
[1746942020731,0.8222,2553.2,2552.5,8.0]
[1746942020928,0.8222,2553.2,2552.2,0.3503]
[1746942021221,0.8222,2553.0,2552.4,8.0]
[1746942021604,0.08370596,2552.9,2552.4,8.0]
[1746942022026,0.08370596,2552.9,2552.5,0.03917212]
[1746942022328,0.8222,2553.0,2552.5,0.03917212]
[1746942022542,0.08370596,2552.9,2552.5,0.03917212]
[1746942022829,0.8222,2553.0,2552.5,0.03917212]
[1746942023213,0.08370596,2552.9,2552.5,0.03917212]
[1746942023610,0.8222,2553.0,2552.5,0.03917212]
[1746942024500,0.8222,2553.0,2552.4,8.3503]
[1746942025814,0.8222,2553.0,2552.5,0.03916963]
[1746942026314,0.8222,2553.0,2552.4,8.3503]
[1746942026851,0.08362637,2552.9,2552.4,8.3503]
[1746942027148,0.8222,2553.0,2552.4,8.3503]
[1746942027352,0.08362637,2552.9,2552.4,8.3503]
[1746942027550,0.8222,2553.0,2552.4,8.0]
[1746942027754,0.08362637,2552.9,2552.4,8.0]
[1746942027965,0.8222,2553.0,2552.4,8.0]
[1746942028115,0.09240303,2552.9,2552.4,8.0]
[1746942028515,0.8222,2553.0,2552.2,8.3503]
[1746942028743,0.8222,2553.0,2552.4,8.0]
[1746942028744,0.09240303,2552.9,2552.4,8.0]
[1746942029441,0.09240303,2552.9,2552.4,8.03917355]
[1746942029833,0.8222,2553.0,2552.4,8.03917355]
[1746942030759,0.09240303,2552.9,2552.4,8.0]
[1746942030922,0.8222,2553.0,2552.4,8.0]
[1746942031322,0.17788723,2552.9,2552.5,0.03917306]
[1746942031550,0.8222,2553.0,2552.5,0.03917306]
[1746942031723,0.17815777,2552.9,2552.5,0.03917306]
[1746942032261,0.761,2552.8,2552.4,10.685]
[1746942032758,0.17778654,2552.7,2552.4,10.685]
[1746942032946,0.761,2552.8,2552.4,8.0]
[1746942033146,0.17778654,2552.7,2552.4,8.0]
[1746942033344,0.761,2552.8,2552.4,8.0]
[1746942033552,0.17778654,2552.7,2552.4,8.0]
[1746942033864,0.761,2552.8,2552.4,8.0]
[1746942034163,0.97797829,2552.7,2551.7,19.469]
[1746942034386,0.761,2552.5,2551.5,5.369]
[1746942034656,0.761,2552.3,2551.5,5.369]
[1746942034957,0.761,2552.1,2551.6,8.0]
[1746942035374,0.761,2552.1,2551.5,5.369]
[1746942035758,0.761,2552.1,2551.3,0.54722447]
[1746942035759,0.761,2552.1,2551.6,8.0]
[1746942035931,0.761,2552.1,2551.7,1.72727919]
[1746942035932,0.17236391,2552.0,2551.7,1.72727919]
[1746942036128,0.761,2552.4,2551.9,9.688093]
[1746942036434,0.761,2552.4,2552.1,1.688093]
[1746942036633,0.761,2552.4,2552.2,8.0]
[1746942037132,0.803,2553.3,2552.3,1.72727109]
[1746942037328,0.15950211,2553.2,2552.5,1.688093]
[1746942037637,0.15950211,2553.2,2552.6,0.0391702]
[1746942038236,0.84219175,2553.1,2552.3,2.684]
[1746942038562,0.42810967,2553.0,2552.4,8.0]
[1746942038775,0.15913098,2553.0,2552.4,8.039173]
[1746942038974,0.84219175,2553.1,2552.4,8.039173]
[1746942039170,0.803,2553.1,2552.4,8.039173]
[1746942039389,0.803,2553.1,2552.4,8.0]
[1746942039673,0.03919175,2553.0,2552.4,8.0]
[1746942039874,0.803,2552.9,2552.4,8.0]
[1746942040039,0.03919175,2552.8,2552.4,8.0]
[1746942040375,0.803,2552.7,2552.2,10.683]
[1746942040573,0.15838852,2552.6,2552.2,10.683]
[1746942041145,0.803,2552.7,2552.2,10.683]
[1746942041384,0.803,2552.7,2552.3,0.03917744]
[1746942042783,0.803,2552.7,2552.2,10.683]
[1746942042986,0.803,2552.7,2551.7,0.3503]
[1746942043288,0.803,2552.5,2551.7,5.368]
[1746942043484,0.803,2552.3,2551.8,8.0]
[1746942044053,0.15783696,2552.2,2551.8,8.0]
[1746942044269,0.803,2552.3,2551.8,8.0]
[1746942044779,0.15783696,2552.2,2551.8,8.0]
[1746942044985,0.803,2552.3,2551.8,8.0]
[1746942045363,0.15783696,2552.2,2551.8,8.0]
[1746942045562,0.803,2552.3,2551.8,8.0]
[1746942045863,0.15783696,2552.2,2551.8,8.0]
[1746942046080,0.15783696,2552.2,2551.7,2.685]
[1746942046081,0.15783696,2552.2,2551.3,8.19692447]
[1746942046288,0.803,2552.3,2551.8,8.0]
[1746942046585,0.15783696,2552.2,2551.8,8.0]
[1746942046753,0.803,2552.3,2551.8,8.0]
[1746942046953,0.1434161,2552.2,2551.8,8.0]
[1746942047154,0.803,2552.3,2551.8,8.03918295]
[1746942047400,0.1434161,2552.2,2551.8,8.0]
[1746942047758,0.803,2552.3,2551.8,8.0]
[1746942047992,0.1434161,2552.2,2551.8,8.0]
[1746942048210,0.803,2552.1,2551.7,5.368]
[1746942048504,0.803,2552.1,2551.8,8.0]
[1746942049071,0.803,2552.1,2551.4,0.55]
[1746942049270,0.803,2552.1,2551.7,8.0]
[1746942049505,0.803,2552.1,2551.7,10.682]
[1746942051111,0.803,2552.1,2551.8,0.03918499]
[1746942052405,0.8273,2552.9,2551.8,0.03918499]
[1746942052611,0.86649175,2552.8,2551.8,0.03918499]
[1746942052776,0.99928764,2552.8,2551.8,0.03918499]
[1746942053209,0.96009589,2552.8,2551.8,0.03918499]
[1746942053895,0.8273,2552.6,2551.8,0.03918499]
[1746942054096,0.03919175,2552.5,2551.8,0.03918499]
[1746942054295,0.12171876,2552.5,2551.8,3.54857654]
[1746942054500,0.12171876,2552.5,2551.9,0.55]
[1746942054700,0.8273,2552.6,2552.0,0.03917587]
[1746942055013,0.8273,2552.6,2551.9,0.55]
[1746942055208,0.8273,2552.6,2552.0,0.0391758]
[1746942055416,0.8273,2552.9,2552.2,8.3503]
[1746942055716,0.8273,2552.9,2552.4,8.0]
[1746942056024,0.8273,2552.9,2552.5,0.03917134]
[1746942059208,0.769,2553.1,2552.5,0.03917134]
[1746942059589,0.769,2553.1,2552.8,8.0]
[1746942059789,0.769,2553.1,2552.9,5.40516716]
[1746942060011,0.769,2553.3,2552.9,5.40516716]
[1746942060307,0.769,2554.0,2553.0,11.50939155]
[1746942060505,0.769,2554.0,2553.1,0.03915919]
[1746942060916,0.12567751,2553.9,2553.1,0.03915919]
[1746942061089,0.769,2554.0,2553.4,8.0]
[1746942061292,0.769,2554.0,2553.5,5.39915449]
[1746942062013,0.03919175,2554.7,2553.7,0.55]
[1746942062310,0.7626,2554.6,2553.8,0.3503]
[1746942062483,0.7626,2554.6,2553.9,0.03914736]
[1746942062824,0.7626,2554.6,2554.0,8.0]
[1746942062981,0.7626,2554.6,2554.1,5.358]
[1746942063524,0.7626,2554.6,2554.1,5.39714738]
[1746942064325,0.7626,2554.6,2554.1,5.358]
[1746942064497,0.7626,2554.6,2554.2,0.03914423]
[1746942064823,0.7626,2555.2,2554.2,0.03914423]
[1746942065021,0.91937093,2555.1,2554.2,0.03914423]
[1746942065184,1.04964165,2555.1,2554.2,8.03914423]
[1746942065385,0.16946247,2555.1,2554.2,8.03914423]
[1746942066183,0.7626,2555.0,2553.8,0.3503]
[1746942066528,0.7626,2554.8,2554.0,8.0]
[1746942066823,0.17024032,2554.7,2554.0,8.0]
[1746942067496,0.17024032,2554.7,2554.1,0.03914752]
[1746942067683,0.17024032,2554.7,2554.1,5.355]
[1746942067884,0.13104857,2554.7,2554.2,11.54853906]
[1746942068230,0.7626,2555.1,2554.3,0.9003]
[1746942068394,0.7626,2555.1,2554.4,0.03913863]
[1746942069884,0.7626,2555.1,2554.3,0.9003]
[1746942070284,0.13160452,2555.0,2554.3,0.9003]
[1746942070512,0.7626,2555.1,2554.3,0.9003]
[1746942070679,0.13141922,2554.9,2554.3,0.9003]
[1746942071024,0.7626,2555.1,2554.4,0.03913841]
[1746942071684,0.7829,2555.6,2554.6,8.0]
[1746942071887,0.03919175,2555.5,2554.7,5.3931373]
[1746942072082,0.17488922,2555.5,2554.7,5.3931373]
[1746942074998,0.17488922,2555.5,2554.8,0.3503]
[1746942075205,0.17488922,2555.5,2554.9,0.03913444]
[1746942075714,0.7829,2555.4,2554.6,5.353]
[1746942076031,0.17451875,2555.3,2554.7,8.0391383]
[1746942076320,0.17451875,2555.3,2554.7,8.0]
[1746942076526,0.17451875,2555.3,2554.7,8.0391383]
[1746942076713,0.135327,2555.3,2554.7,8.0391383]
[1746942077710,0.8066,2555.7,2554.7,11.54852985]
[1746942077882,0.8066,2555.7,2554.7,11.50939155]
[1746942078088,0.13588268,2555.6,2554.9,0.3503]
[1746942078321,0.13588268,2555.6,2555.0,0.03913182]
[1746942078518,0.8066,2555.7,2555.0,0.03913182]
[1746942079028,0.8066,2556.0,2555.0,0.03913182]
[1746942079199,0.03919175,2555.9,2555.0,0.03913182]
[1746942079405,0.13625306,2555.8,2555.0,0.03913182]
[1746942079608,0.8066,2555.7,2554.9,0.3503]
[1746942079823,0.13588268,2555.6,2555.0,5.351]
[1746942080031,0.13588268,2555.6,2555.1,0.03913522]
[1746942080324,0.13588268,2555.6,2555.1,8.03913522]
[1746942080497,0.8066,2555.9,2555.1,8.03913522]
[1746942080840,0.13748349,2555.8,2555.2,0.55]
[1746942081005,0.13748349,2555.8,2555.4,0.3503]
[1746942081202,0.8066,2556.2,2555.5,0.03912259]
[1746942081405,0.13931706,2556.1,2555.7,8.0]
[1746942081607,0.8066,2556.2,2555.8,0.03912157]
[1746942081829,0.13931706,2556.1,2555.8,0.03912157]
[1746942082242,0.8066,2556.2,2555.8,0.03912157]
[1746942082537,0.8066,2556.2,2555.6,5.35]
[1746942082731,0.13931706,2556.1,2555.6,5.35]
[1746942082936,0.8066,2556.2,2555.4,0.3503]
[1746942083238,0.1293328,2556.1,2555.6,2.677]
[1746942083893,0.0793328,2556.1,2555.6,2.677]
[1746942084122,0.12490093,2556.1,2555.6,2.677]
[1746942084459,0.8066,2556.2,2555.6,2.677]
[1746942084621,0.7566,2556.2,2555.6,2.677]
[1746942084828,0.12508607,2556.1,2555.6,2.677]
[1746942086403,0.12508607,2556.1,2555.7,0.03912357]
[1746942086598,0.7566,2556.2,2555.7,0.03912357]
[1746942086798,0.11441402,2556.1,2555.6,2.677]
[1746942087011,0.7566,2556.2,2555.6,2.677]
[1746942087331,0.10530225,2556.1,2555.6,2.677]
[1746942087713,0.7566,2556.2,2555.6,2.677]
[1746942088038,0.10527007,2556.1,2555.6,2.677]
[1746942089943,0.7566,2556.2,2555.7,0.03912358]
[1746942090116,0.10508493,2556.0,2555.7,0.03912358]
[1746942090427,0.7566,2556.2,2555.7,0.03912358]
[1746942090629,0.09658629,2556.1,2555.6,2.677]
[1746942091799,0.09658629,2556.1,2555.7,8.0]
[1746942091999,0.7566,2556.2,2555.7,8.03912356]
[1746942092198,0.08869961,2556.1,2555.7,8.03912356]
[1746942092407,0.08869961,2556.1,2555.7,8.03912357]
[1746942092612,0.83229175,2556.5,2555.7,8.03912357]
[1746942092928,0.7931,2556.3,2555.7,8.0]
[1746942093296,0.08173089,2556.2,2555.7,8.0]
[1746942093644,0.12092264,2556.2,2555.7,8.0]
[1746942094527,0.08173089,2556.2,2555.7,8.03912354]
[1746942094727,0.08173089,2556.2,2555.7,8.0]
[1746942094933,0.08173089,2556.2,2555.7,8.0391235]
[1746942095828,0.7931,2556.3,2555.7,8.0391235]
[1746942096020,0.09009918,2556.2,2555.7,8.0391235]
[1746942096218,0.7931,2556.3,2555.7,8.0391235]
[1746942096402,0.09009918,2556.2,2555.7,8.0391235]
[1746942096605,0.7931,2556.3,2555.7,8.0391235]
[1746942096923,0.09009918,2556.2,2555.7,2.669]
[1746942097231,0.09009918,2556.2,2555.7,2.70812105]
[1746942097534,0.7931,2556.3,2555.7,2.70812105]
[1746942097733,0.7931,2556.3,2555.7,2.669]
[1746942098237,0.7931,2556.3,2555.6,5.339]
[1746942099233,0.798,2556.1,2555.6,5.339]
[1746942099642,0.83719175,2556.0,2555.0,8.0]
[1746942099944,0.83719175,2556.0,2553.9,10.24]
[1746942099945,0.798,2555.8,2554.6,5.338]
[1746942100145,0.03919175,2555.7,2554.7,8.0]
[1746942100445,0.798,2555.6,2554.7,8.0]
[1746942100655,0.03919175,2555.5,2554.6,5.338]
[1746942100950,0.03919175,2555.5,2554.7,8.0]
[1746942101123,0.798,2555.4,2554.7,8.0]
[1746942101317,0.798,2555.4,2554.6,5.338]
[1746942101506,0.798,2555.4,2554.7,8.0]
[1746942101911,0.798,2555.4,2554.8,0.03913444]
[1746942102246,0.798,2555.4,2554.9,8.55]
[1746942102422,0.7607,2556.0,2555.0,0.03912957]
[1746942102743,0.7607,2555.8,2554.8,0.55]
[1746942102949,0.7607,2555.6,2554.9,5.338]
[1746942103124,0.7607,2555.6,2554.5,0.55]
[1746942103322,0.7607,2555.6,2554.4,8.4003]
[1746942103323,0.7607,2555.4,2554.6,5.338]
[1746942103543,0.7607,2555.4,2554.7,0.03913549]
[1746942103736,0.7607,2555.4,2554.9,0.55]
[1746942106371,0.7607,2555.4,2554.7,8.0]
[1746942106532,0.03919175,2555.3,2554.3,2.67]
[1746942106735,0.8301,2555.2,2554.3,2.67]
[1746942106959,0.86929175,2555.1,2554.3,2.67]
[1746942107251,0.86929175,2555.1,2554.4,8.0]
[1746942107625,0.86929175,2555.1,2554.3,8.0]
[1746942107826,0.86929175,2555.1,2553.9,8.0]
[1746942108071,0.86929175,2555.1,2554.1,8.0]
[1746942108224,0.8301,2555.1,2554.2,0.98944313]
[1746942108568,0.8301,2555.1,2554.2,0.55]
[1746942108922,0.8301,2554.9,2554.1,11.50939155]
[1746942109244,0.8301,2554.9,2554.0,0.4003]
[1746942109583,0.8301,2554.9,2553.9,8.55]
[1746942109584,0.8301,2554.9,2553.9,8.0]
[1746942109781,0.8301,2554.7,2553.8,0.19405253]
[1746942109925,0.8301,2554.7,2554.0,8.0]
[1746942110274,0.8301,2554.7,2553.9,2.667]
[1746942110457,0.8301,2554.5,2554.0,8.0]
[1746942111385,0.8301,2554.8,2554.2,0.9503]
[1746942111522,0.8301,2554.8,2554.3,0.03914062]
[1746942111853,0.8301,2554.8,2554.2,0.9503]
[1746942112023,0.8301,2554.8,2554.3,0.03914082]
[1746942112355,0.8301,2554.8,2554.4,2.671]
[1746942112660,0.8301,2554.8,2554.5,10.667]
[1746942114585,0.8301,2554.8,2553.9,0.55]
[1746942114788,0.8301,2554.8,2554.3,10.666]
[1746942116386,0.8301,2554.8,2554.4,0.03914324]
[1746942117491,0.8301,2554.8,2554.4,0.55]
[1746942121982,0.8301,2554.8,2554.3,10.666]
[1746942122310,0.8301,2554.8,2554.5,8.0]
[1746942125378,0.8301,2554.8,2554.5,8.03914134]
[1746942125797,0.8301,2554.8,2554.5,8.0]
[1746942126007,0.8301,2554.8,2554.6,0.03913896]
[1746942126410,0.8078,2555.5,2554.6,0.03913896]
[1746942127218,0.8078,2555.5,2554.6,0.55]
[1746942127623,0.8078,2555.5,2554.6,0.58913493]
[1746942128687,0.8078,2555.5,2554.8,8.9503]
[1746942128932,0.8078,2555.5,2555.0,11.50939155]
[1746942129116,0.51568116,2558.5,2555.2,8.0]
[1746942129117,0.8325,2555.7,2555.2,8.0]
[1746942129309,0.8325,2555.7,2555.3,0.03912618]
[1746942129519,0.8325,2556.8,2555.6,3.50939155]
[1746942129718,0.03919175,2556.7,2555.7,13.91711841]
[1746942129894,0.8325,2556.6,2555.9,8.0]
[1746942130095,0.8325,2556.4,2555.9,8.0]
[1746942130490,0.8325,2556.4,2555.9,8.0391207]
[1746942131034,0.8325,2556.4,2555.9,8.0]
[1746942131195,0.8325,2556.4,2555.9,10.663]
[1746942132216,0.8325,2556.4,2556.0,0.03912064]
[1746942132400,0.8325,2556.4,2555.9,10.663]
[1746942132900,0.7756,2556.8,2556.0,0.55]
[1746942133918,0.7756,2556.8,2555.9,10.663]
[1746942134221,0.7756,2556.6,2556.1,8.0]
[1746942134424,0.7756,2556.6,2556.1,5.326]
[1746942134941,0.03919175,2556.5,2556.1,8.0]
[1746942135092,0.03919175,2556.5,2555.4,8.0]
[1746942135093,0.7756,2556.4,2555.4,8.0]
[1746942135293,0.7756,2556.2,2555.4,5.326]
[1746942135495,0.7756,2556.0,2554.8,0.4003]
[1746942135698,0.7756,2555.8,2555.0,5.326]
[1746942135911,0.7756,2555.8,2555.1,0.03913147]
[1746942136099,0.7756,2555.8,2555.2,0.55]
[1746942136437,0.7756,2555.8,2555.3,0.03912512]
[1746942136738,0.7756,2555.8,2555.2,0.55]
[1746942137344,0.7756,2555.8,2555.1,0.55]
[1746942137538,0.7756,2555.8,2555.3,8.0]
[1746942137707,0.7756,2555.8,2555.0,8.0]
[1746942138040,0.7756,2555.8,2555.1,5.325]
[1746942138340,0.7756,2555.8,2555.1,5.36413004]
[1746942139064,0.7758,2556.1,2555.4,0.55]
[1746942139213,0.7758,2556.1,2555.5,0.0391218]
[1746942140430,0.7758,2556.1,2555.4,0.55]
[1746942140946,0.7758,2556.5,2555.7,8.0]
[1746942141130,0.7758,2556.5,2555.9,8.0]
[1746942141621,0.7758,2556.5,2555.7,8.0]
[1746942141819,0.7758,2556.5,2556.1,8.0]
[1746942142245,0.7758,2556.5,2556.1,8.03911814]
[1746942142635,0.7758,2556.5,2556.1,8.03911712]
[1746942143734,0.7758,2556.5,2556.1,8.0]
[1746942145016,0.7591,2556.7,2556.2,0.03911359]
[1746942146772,0.7591,2556.7,2556.1,8.0]
[1746942147258,0.7591,2556.7,2556.3,8.0]
[1746942148621,0.7591,2556.7,2556.3,8.03911425]
[1746942148820,0.7591,2556.7,2556.3,8.0]
[1746942149020,0.7591,2556.7,2556.3,8.03911112]
[1746942149360,0.7591,2556.7,2556.3,8.0]
[1746942149861,0.03919175,2556.6,2555.6,8.52]
[1746942150159,0.8035,2556.5,2555.8,8.0]
[1746942150362,0.8035,2556.5,2556.0,8.0]
[1746942150661,0.8035,2556.5,2555.9,0.52]
[1746942150831,0.8035,2556.5,2556.0,0.03911841]
[1746942151561,0.8035,2556.5,2556.0,0.4003]
[1746942151864,0.8035,2556.5,2556.1,0.52]
[1746942153426,0.8035,2556.5,2556.2,0.03911348]
[1746942153622,1.0,2557.0,2556.2,0.03911348]
[1746942153623,0.7632,2556.6,2556.2,0.03911348]
[1746942153870,0.7632,2556.6,2556.2,8.0]
[1746942156331,0.7632,2556.6,2556.1,0.52]
[1746942156667,0.8111,2556.4,2556.1,0.52]
[1746942156881,0.8111,2556.2,2556.1,0.52]
[1746942157833,0.8111,2556.2,2555.4,0.03912761]
[1746942158034,0.8111,2556.2,2555.4,0.55]
[1746942158229,0.8111,2556.2,2555.4,0.5891224]
[1746942158435,0.8111,2556.2,2555.3,8.0]
[1746942158635,0.03919175,2556.1,2555.4,5.315]
[1746942158861,0.8111,2556.0,2555.5,0.0391268]
[1746942159651,0.8111,2556.0,2555.6,0.55]
[1746942160050,0.8111,2556.0,2555.5,8.0]
[1746942160378,0.8111,2556.0,2555.7,8.0]
[1746942160581,0.8111,2556.0,2555.1,0.1942495]
[1746942160735,0.8111,2556.0,2555.3,8.0]
[1746942160960,0.8111,2556.0,2555.2,5.315]
[1746942160961,0.8111,2556.0,2555.0,8.0]
[1746942161304,0.8111,2556.0,2555.1,5.35412702]
[1746942161800,0.8111,2556.0,2555.1,5.54794815]
[1746942162104,0.8111,2556.0,2555.4,0.55]
[1746942162408,0.8111,2556.0,2555.5,0.03912204]
[1746942163001,0.8111,2556.4,2555.6,0.55]
[1746942163312,0.8111,2556.4,2555.9,0.55]
[1746942163610,0.03919175,2556.9,2555.9,0.55]